bitfinex/quotes_ETHUSD_20260130
["timestamp","ask_amount","ask_price","bid_price","bid_amount"]
[1769806106882,0.93003127,2691.0,2689.8,4.64649467]
[1769806106883,0.93003127,2691.0,2689.8,5.42449467]
[1769806107078,0.001,2691.0,2689.8,5.42449467]
[1769806107708,0.001,2691.0,2689.9,0.92940258]
[1769806108410,12.85053032,2692.1,2690.1,12.76380472]
[1769806108608,0.92867756,2692.0,2690.4,4.809117]
[1769806108845,0.7448584,2692.0,2690.4,4.036197]
[1769806109000,0.7448584,2692.0,2690.4,5.666018]
[1769806109205,12.85053032,2692.1,2690.5,1.84298227]
[1769806109451,13.77917536,2692.1,2690.6,0.778]
[1769806109822,13.77917536,2692.1,2690.7,0.92912624]
[1769806110336,0.001,2692.1,2690.8,4.64649467]
[1769806110741,0.001,2692.1,2690.9,12.76380472]
[1769806110908,0.001,2692.1,2691.0,1.74102994]
[1769806111109,0.001,2692.1,2691.1,8.808401]
[1769806111332,0.001,2692.1,2691.0,6.38752461]
[1769806111537,0.001,2692.1,2691.1,4.813815]
[1769806111725,0.001,2692.1,2691.2,0.92895362]
[1769806111920,0.001,2692.1,2691.3,0.46447681]
[1769806112209,0.001,2692.1,2691.4,0.778]
[1769806112439,0.001,2692.1,2691.4,5.42449467]
[1769806113243,0.001,2692.1,2691.4,0.778]
[1769806113837,0.001,2692.1,2691.4,1.70686191]
[1769806114030,1.3789142,2692.1,2691.4,1.70686191]
[1769806115943,0.001,2692.1,2691.4,1.70686191]
[1769806116521,0.001,2692.1,2691.4,6.35335658]
[1769806117039,0.001,2692.1,2690.9,0.92904896]
[1769806117040,14.18246426,2692.1,2690.9,0.92904896]
[1769806117215,14.18246426,2692.1,2690.8,4.64649467]
[1769806117418,14.18246426,2692.1,2690.5,4.49474742]
[1769806117419,14.18246426,2692.1,2691.2,0.92892727]
[1769806117645,1.78970365,2692.0,2690.6,4.64649467]
[1769806117969,13.11934051,2691.7,2690.5,5.42449467]
[1769806118256,13.11934051,2691.7,2690.6,0.92913728]
[1769806118455,13.89734051,2691.7,2690.6,0.92913728]
[1769806118656,0.92872456,2691.9,2690.7,4.64649467]
[1769806118862,0.92872456,2691.9,2690.8,0.55756319]
[1769806119364,0.92872456,2691.9,2690.9,4.64649467]
[1769806119570,0.001,2692.1,2690.9,4.64649467]
[1769806119957,0.001,2692.1,2691.0,0.92902266]
[1769806120156,0.001,2692.1,2691.1,0.778]
[1769806120330,0.001,2692.1,2691.1,5.42449467]
[1769806120649,13.12034051,2692.1,2691.2,0.63535173]
[1769806121052,13.12034051,2692.1,2691.0,0.93012266]
[1769806121233,13.11934051,2691.8,2691.0,0.0011]
[1769806121432,13.11934051,2691.8,2690.9,0.92903719]
[1769806121683,0.001,2691.9,2690.9,5.57553186]
[1769806121960,14.04808707,2691.8,2690.9,5.57553186]
[1769806122176,1.77640352,2691.7,2690.9,0.92903719]
[1769806122354,14.89574403,2691.7,2690.3,3.71700699]
[1769806122569,14.89574403,2691.7,2690.3,0.92923839]
[1769806122765,14.89574403,2691.7,2690.4,4.64649467]
[1769806122945,14.89574403,2691.7,2690.0,1.70734568]
[1769806123266,13.11934051,2691.5,2690.2,5.5757926]
[1769806123474,13.11934051,2691.5,2690.4,0.9292185]
[1769806123652,13.11934051,2691.5,2690.2,0.92927594]
[1769806123970,13.11934051,2691.3,2690.3,4.64649467]
[1769806124283,13.11934051,2691.1,2690.3,4.64649467]
[1769806124479,1.40482941,2691.0,2690.3,4.64649467]
[1769806125532,14.52416992,2691.0,2689.5,0.0011]
[1769806125772,13.11934051,2691.0,2689.5,0.0011]
[1769806126135,13.11934051,2690.8,2689.5,0.0011]
[1769806126431,13.11934051,2690.6,2689.5,0.0011]
[1769806127033,13.11934051,2690.6,2689.3,0.0011]
[1769806127235,13.11934051,2690.4,2688.9,0.92974822]
[1769806127432,0.778,2690.3,2688.9,0.92974822]
[1769806127649,13.89734051,2690.3,2688.9,0.92974822]
[1769806128247,14.04863944,2690.2,2688.9,0.92974822]
[1769806128867,14.04863944,2690.2,2688.8,0.667963]
[1769806129059,13.11934051,2690.0,2688.8,0.667963]
[1769806129258,13.11934051,2690.0,2688.8,1.59774113]
[1769806129640,0.778,2689.9,2688.8,1.59774113]
[1769806130037,13.11934051,2689.8,2688.4,0.92990073]
[1769806130235,13.11934051,2689.6,2688.2,0.0006]
[1769806130444,13.11934051,2689.4,2688.0,0.0009]
[1769806130665,0.778,2689.3,2688.0,0.0009]
[1769806131466,13.89734051,2689.3,2688.0,0.0009]
[1769806132392,13.11934051,2689.1,2687.6,1.70819492]
[1769806134589,13.11934051,2688.9,2687.6,1.70819492]
[1769806134772,0.778,2688.8,2687.7,0.54290344]
[1769806134969,13.89734051,2688.8,2687.8,0.0011]
[1769806135495,13.89734051,2688.8,2687.0,3.72262523]
[1769806135496,13.89734051,2688.8,2687.5,0.93130902]
[1769806135713,13.89574051,2688.8,2687.5,0.0011]
[1769806135863,0.778,2688.7,2687.5,0.0011]
[1769806136064,13.11934051,2688.5,2687.5,0.0011]
[1769806136381,0.778,2688.4,2687.6,0.93019453]
[1769806136762,0.92995573,2688.3,2687.5,0.0011]
[1769806137194,16.83893512,2688.5,2687.5,0.0011]
[1769806137195,5.10917914,2688.6,2687.5,0.0011]
[1769806137366,0.92986928,2688.6,2687.5,0.0011]
[1769806137963,0.92976132,2688.9,2687.5,13.66838862]
[1769806138399,0.92960993,2689.3,2687.5,13.66838862]
[1769806138711,1.70860993,2689.3,2687.5,13.66838862]
[1769806138921,1.70860993,2689.3,2687.7,13.66728862]
[1769806139106,1.85462917,2689.2,2687.8,1.45974866]
[1769806140584,1.40488122,2689.5,2687.8,1.45974866]
[1769806140921,13.11934051,2689.8,2688.0,13.66728862]
[1769806140922,4.49702498,2689.7,2688.0,13.66728862]
[1769806141132,3.71802498,2689.7,2688.0,13.66728862]
[1769806141413,13.11934051,2690.7,2688.4,13.66728862]
[1769806141615,0.779,2690.5,2688.6,13.66728862]
[1769806141917,0.92916078,2690.6,2688.6,13.66728862]
[1769806142083,2.55551444,2690.5,2688.8,13.66728862]
[1769806142621,13.11934051,2691.2,2688.8,13.66728862]
[1769806142915,13.11934051,2691.2,2689.2,13.66728862]
[1769806143213,13.11934051,2691.2,2689.1,0.92967907]
[1769806143214,1.7079191,2691.3,2689.4,13.66728862]
[1769806143529,0.9289191,2691.3,2689.4,13.66728862]
[1769806143822,0.779,2691.2,2689.5,15.11191748]
[1769806144022,2.17237702,2691.3,2689.5,15.11191748]
[1769806144784,2.17237702,2691.3,2689.6,0.92950624]
[1769806145284,15.29171753,2691.3,2689.6,0.92950624]
[1769806145834,14.51271753,2691.3,2689.6,0.92950624]
[1769806146122,14.51271753,2691.3,2689.7,0.60921601]
[1769806147424,0.001,2691.1,2689.8,0.92943713]
[1769806148481,13.30797047,2691.1,2689.8,0.92943713]
[1769806149621,14.23599313,2691.0,2689.7,0.92944862]
[1769806150398,13.30697047,2690.8,2689.0,0.92968]
[1769806150598,13.30697047,2690.6,2689.0,0.92971044]
[1769806150797,13.30697047,2690.6,2689.0,0.92969574]
[1769806151001,13.30697047,2690.6,2689.0,0.92969678]
[1769806151204,13.30697047,2690.4,2688.9,0.92972231]
[1769806151405,13.30697047,2690.4,2689.1,0.92967663]
[1769806151716,13.30697047,2690.2,2688.4,0.92992114]
[1769806151920,0.779,2690.1,2688.4,0.92992114]
[1769806152319,14.08597047,2690.1,2688.4,0.92992114]
[1769806152622,13.30697047,2689.9,2688.4,0.92992114]
[1769806153912,13.30697047,2689.7,2687.9,0.93007245]
[1769806154190,0.92943713,2689.8,2687.9,0.93008432]
[1769806154191,13.30697047,2689.5,2687.9,0.93008432]
[1769806154403,13.30697047,2689.3,2687.8,0.93010796]
[1769806154604,13.30697047,2689.3,2687.5,0.0011]
[1769806154809,13.30697047,2689.1,2687.5,0.0011]
[1769806155013,13.30697047,2688.9,2687.5,0.0011]
[1769806155326,0.2335703,2689.5,2687.5,0.0011]
[1769806155327,13.30697047,2688.7,2687.5,0.0011]
[1769806156230,13.30697047,2688.3,2687.0,0.0011]
[1769806156394,13.30697047,2688.1,2686.6,0.57930365]
[1769806156600,13.30697047,2687.9,2686.5,0.0011]
[1769806156800,13.30697047,2687.7,2686.5,0.0011]
[1769806157025,14.08597047,2687.6,2686.5,0.0011]
[1769806157414,0.93890142,2687.8,2686.5,0.0011]
[1769806157614,0.779,2687.7,2686.5,0.0011]
[1769806157819,14.08597047,2687.7,2686.5,0.0011]
[1769806158131,0.93019794,2687.6,2686.5,0.0011]
[1769806158730,14.23716841,2687.6,2686.5,0.0011]
[1769806159031,14.23716841,2687.6,2686.8,0.0011]
[1769806159336,15.18066649,2687.5,2686.5,0.0011]
[1769806159828,0.779,2687.4,2686.5,0.0011]
[1769806160229,0.93030178,2687.3,2686.5,0.0011]
[1769806161000,14.23727225,2687.3,2685.8,0.93082135]
[1769806161417,0.779,2687.2,2685.8,0.93082135]
[1769806161724,1.25280245,2687.1,2685.9,0.54331068]
[1769806162515,2.18319459,2687.1,2686.0,0.93075204]
[1769806162828,0.93030048,2687.4,2686.0,0.93075204]
[1769806163003,1.70930048,2687.4,2686.0,0.93075204]
[1769806163204,15.01627095,2687.4,2686.0,0.93075204]
[1769806163826,15.01627095,2687.4,2685.9,0.93078375]
[1769806164740,14.23727095,2687.4,2685.8,3.723272]
[1769806164941,15.88179108,2687.3,2685.8,4.26658134]
[1769806165462,15.88179108,2687.3,2685.8,0.93082135]
[1769806165653,13.30697047,2687.1,2685.5,0.0011]
[1769806165954,13.30697047,2687.1,2685.5,0.93202374]
[1769806166157,13.30697047,2686.9,2685.5,0.0011]
[1769806166470,13.30697047,2686.7,2685.5,0.0011]
[1769806166622,13.30697047,2686.5,2685.5,0.0011]
[1769806166821,14.23758393,2686.4,2685.5,0.0011]
[1769806167024,0.779,2686.3,2685.5,0.0011]
[1769806168219,14.08597047,2686.3,2685.5,0.0011]
[1769806168836,0.93068274,2686.2,2685.5,0.0011]
[1769806169038,0.55167786,2686.1,2685.5,0.0011]
[1769806169361,0.779,2686.3,2685.5,0.0011]
[1769806171046,0.93068274,2686.2,2685.7,0.0011]
[1769806172853,13.30697047,2686.7,2685.7,0.0011]
[1769806172854,0.93050561,2686.8,2685.7,0.0011]
[1769806173056,0.001,2687.2,2685.8,13.64461549]
[1769806173353,0.001,2687.2,2685.9,1.36457155]
[1769806173552,13.30797047,2687.2,2685.9,1.36457155]
[1769806173729,13.30797047,2687.2,2685.8,0.93082135]
[1769806174132,13.30797047,2687.2,2685.8,13.64461549]
[1769806174133,0.78,2687.2,2685.8,13.64461549]
[1769806174458,0.78,2687.2,2685.8,0.93082135]
[1769806175556,0.93037103,2687.1,2685.7,3.72438542]
[1769806176545,14.33228675,2687.1,2685.7,3.72438542]
[1769806176749,14.33228675,2687.1,2685.8,0.46552414]
[1769806177860,15.11128675,2687.1,2685.9,0.9307867]
[1769806178532,0.93037103,2687.1,2685.9,0.9307867]
[1769806179365,0.78,2687.2,2685.9,0.9307867]
[1769806179663,1.71033641,2687.2,2685.9,0.9307867]
[1769806179829,0.54315749,2687.1,2686.0,0.51194576]
[1769806180335,0.54315749,2687.1,2686.1,0.93071739]
[1769806180535,1.47354978,2687.1,2686.1,0.93071739]
[1769806182270,1.47354978,2687.1,2685.9,0.9307867]
[1769806182579,1.47354978,2687.1,2686.0,0.0011]
[1769806182767,1.8940505,2687.0,2686.0,0.51315576]
[1769806182967,1.8940505,2687.0,2686.0,0.0011]
[1769806183269,0.779,2686.9,2686.0,0.0011]
[1769806183472,0.001,2687.0,2686.1,13.16901847]
[1769806183865,13.89562053,2688.2,2686.3,13.16901847]
[1769806184262,13.89562053,2688.2,2686.4,0.93061346]
[1769806184476,12.96560755,2688.0,2686.5,1.78220858]
[1769806184677,1.76154512,2688.1,2686.5,1.78220858]
[1769806184902,0.779,2688.1,2686.5,14.95122705]
[1769806185275,13.74460755,2688.1,2686.5,14.95122705]
[1769806185691,0.779,2688.1,2686.5,14.95122705]
[1769806185889,12.96560755,2688.5,2686.6,14.75720252]
[1769806186089,0.92992114,2688.4,2686.6,14.75720252]
[1769806186402,0.92992114,2688.4,2686.7,0.93050954]
[1769806186589,13.89552869,2688.4,2686.8,0.779]
[1769806187558,0.779,2688.3,2686.8,0.779]
[1769806187775,13.74460755,2688.3,2686.8,0.779]
[1769806188376,15.58401752,2688.3,2686.8,0.779]
[1769806188574,1.70899032,2688.2,2686.9,0.93044028]
[1769806188967,0.779,2688.8,2686.9,14.09945875]
[1769806189461,12.96560755,2688.7,2686.9,0.93044028]
[1769806190298,12.96560755,2688.7,2686.9,14.09945875]
[1769806190605,0.92971364,2689.0,2687.2,13.16901847]
[1769806190787,0.92971364,2689.0,2687.4,13.16901847]
[1769806190990,13.89532119,2689.0,2687.3,0.779]
[1769806193213,13.89532119,2689.0,2687.4,0.93026717]
[1769806193370,13.89532119,2689.0,2687.0,1.78212199]
[1769806193701,12.96560755,2688.8,2687.1,0.93035235]
[1769806193900,12.96560755,2688.8,2687.3,0.93029822]
[1769806194294,12.96560755,2688.8,2687.2,0.93031764]
[1769806194597,12.96560755,2688.8,2687.2,0.93033107]
[1769806194799,12.96560755,2688.8,2687.2,0.93033523]
[1769806195099,12.96560755,2688.6,2687.2,0.93033523]
[1769806195302,12.96560755,2688.4,2686.7,3.7220207]
[1769806195602,12.96560755,2688.4,2687.1,0.0011]
[1769806197904,12.96560755,2688.2,2687.1,0.0011]
[1769806198112,1.38955633,2688.1,2687.1,0.0011]
[1769806198296,0.779,2688.0,2687.1,0.0011]
[1769806199100,13.74460755,2688.0,2687.1,0.0011]
[1769806199487,13.74460755,2688.0,2686.9,0.0011]
[1769806199808,13.74380755,2688.0,2686.9,0.0011]
[1769806200112,0.93012872,2687.8,2686.9,0.0011]
[1769806200276,1.48049251,2688.7,2686.9,13.17011847]
[1769806200483,0.93085478,2688.6,2687.1,13.16901847]
[1769806200682,0.001,2688.6,2687.1,13.16901847]
[1769806200892,0.001,2691.1,2687.1,13.16901847]
[1769806200893,13.89500147,2690.0,2687.7,13.16901847]
[1769806201108,0.92922985,2690.4,2688.2,13.16901847]
[1769806201286,0.92922985,2690.4,2688.4,13.16901847]
[1769806201499,14.67364959,2691.0,2688.8,13.16901847]
[1769806201833,12.96560755,2690.9,2688.8,13.16901847]
[1769806202123,1.70804204,2691.0,2688.9,14.48592032]
[1769806202124,12.96560755,2690.7,2688.9,14.48592032]
[1769806202348,12.96560755,2690.7,2689.0,0.92971364]
[1769806202349,13.89476833,2690.6,2689.0,0.92971364]
[1769806202645,0.92916078,2690.6,2689.0,14.09873211]
[1769806202853,13.89476833,2690.6,2689.0,0.92971364]
[1769806203426,0.92916078,2690.6,2689.0,0.92971364]
[1769806203595,0.46458039,2690.5,2689.1,1.78175867]
[1769806204349,0.92922985,2690.4,2689.2,0.9296445]
[1769806204912,0.92912624,2690.7,2689.2,0.9296445]
[1769806205169,13.89473379,2690.7,2689.1,1.78175867]
[1769806205305,12.96560755,2690.5,2688.8,0.92975712]
[1769806205504,12.96560755,2690.3,2689.1,0.9296781]
[1769806205725,1.30680075,2690.4,2689.1,0.9296781]
[1769806205930,0.779,2690.3,2689.1,0.9296781]
[1769806206336,0.92929893,2690.2,2688.8,0.9297828]
[1769806206547,1.70829893,2690.2,2688.8,0.9297828]
[1769806206722,15.39544544,2690.2,2688.7,0.92980061]
[1769806206926,15.59841063,2690.1,2688.7,0.92980061]
[1769806207151,1.91126412,2690.1,2688.7,0.92980061]
[1769806207338,1.70829893,2690.2,2688.7,0.92980061]
[1769806208643,1.70829893,2690.2,2688.6,17.06681428]
[1769806208868,3.71703929,2690.4,2688.7,13.34751391]
[1769806209112,0.001,2691.1,2689.3,13.34751391]
[1769806209251,0.92999117,2691.1,2689.5,13.34751391]
[1769806210451,0.92999117,2691.1,2689.4,1.33475139]
[1769806210651,14.46614651,2691.0,2689.5,1.70852761]
[1769806211384,14.46614651,2691.0,2689.1,3.71867695]
[1769806211578,14.46614651,2691.0,2689.5,0.92953549]
[1769806211782,13.68714651,2691.0,2689.5,0.92953549]
[1769806211956,0.779,2690.9,2689.5,0.92953549]
[1769806212150,1.44661465,2690.8,2689.6,0.46478255]
[1769806212975,0.92912624,2690.7,2689.6,0.46478255]
[1769806213165,0.92912624,2690.7,2689.5,0.9295226]
[1769806213394,0.92912624,2690.7,2689.6,0.92950572]
[1769806213926,14.61627275,2690.7,2689.0,0.92969545]
[1769806214085,14.61627275,2690.7,2688.8,0.779]
[1769806214399,0.92912624,2690.7,2689.6,0.92950356]
[1769806214694,0.92912624,2690.7,2689.7,0.46475694]
[1769806214995,3.71650499,2690.9,2689.2,3.71854999]
[1769806215198,3.71609102,2691.0,2689.3,13.34751391]
[1769806215600,13.68714651,2690.9,2688.8,13.34751391]
[1769806215806,13.68714651,2690.7,2689.1,0.92967868]
[1769806216401,0.779,2690.6,2689.1,0.92967868]
[1769806216604,0.779,2690.6,2689.2,0.46485136]
[1769806216804,14.46614651,2690.6,2689.2,0.46485136]
[1769806217003,0.92919531,2690.5,2689.2,1.39447476]
[1769806217907,13.68714651,2690.3,2688.7,0.9297927]
[1769806218086,13.68714651,2690.3,2688.8,0.92975603]
[1769806218282,13.68714651,2690.3,2688.9,0.92973131]
[1769806218478,13.68714651,2690.1,2688.3,3.71979767]
[1769806218674,13.68714651,2690.1,2687.7,3.72056012]
[1769806218675,0.1024,2690.0,2687.8,16.71895164]
[1769806218877,13.68714651,2689.5,2687.9,2.04395118]
[1769806219184,0.92957536,2689.4,2688.0,13.34751391]
[1769806219579,13.78954651,2689.3,2687.8,1.35618058]
[1769806219773,13.78954651,2689.3,2687.8,2.28629437]
[1769806220176,0.92957536,2689.4,2687.8,2.28629437]
[1769806220380,2.30839178,2689.9,2688.0,13.34751391]
[1769806220591,3.71743697,2690.1,2688.2,13.34751391]
[1769806220592,0.92936802,2690.0,2688.2,13.34751391]
[1769806220794,0.92929893,2690.2,2688.6,13.34861391]
[1769806220995,0.001,2690.4,2688.8,0.9297828]
[1769806221199,0.001,2690.4,2688.8,14.27729671]
[1769806222708,13.68814651,2690.4,2688.8,0.9297828]
[1769806222909,1.46173418,2690.3,2688.9,0.4648914]
[1769806223081,0.92929893,2690.2,2689.0,0.92971364]
[1769806223684,0.92929893,2690.2,2688.9,0.4648914]
[1769806223877,0.92929893,2690.2,2688.9,0.92973106]
[1769806225082,3.71819574,2690.4,2688.9,0.92973106]
[1769806226112,3.71819574,2690.4,2688.9,14.27724497]
[1769806226919,0.001,2690.4,2689.1,13.34751391]
[1769806227119,3.71592505,2691.2,2689.5,13.34751391]
[1769806227413,0.92888459,2691.4,2689.5,13.34751391]
[1769806227786,0.92864306,2692.1,2689.7,13.34751391]
[1769806227986,0.92864306,2692.1,2690.1,13.34751391]
[1769806228218,0.92864306,2692.1,2690.3,13.34751391]
[1769806228410,1.39294101,2692.1,2690.5,13.34751391]
[1769806228937,15.08008752,2692.1,2690.4,1.33475139]
[1769806229120,15.08008752,2692.1,2690.4,0.9292078]
[1769806231289,1.39294101,2692.1,2690.4,13.34751391]
[1769806232091,15.08008752,2692.1,2690.3,3.71704006]
[1769806232291,15.08008752,2692.1,2690.3,0.92926439]
[1769806232589,13.68714651,2691.9,2690.0,3.71735479]
[1769806232790,13.68714651,2691.5,2689.7,0.92944185]
[1769806232994,13.68714651,2691.3,2689.7,0.92944185]
[1769806233229,14.61610013,2691.2,2689.4,0.92957536]
[1769806233818,14.61610013,2691.2,2689.4,14.27708927]
[1769806234025,2.61119146,2691.1,2689.5,1.87734652]
[1769806234894,1.83319146,2691.1,2689.5,1.87734652]
[1769806235221,0.92902266,2691.0,2689.6,0.92950624]
[1769806235925,14.61616917,2691.0,2689.6,0.92950624]
[1769806236293,14.61616917,2691.0,2688.6,0.0011]
[1769806236294,13.68714651,2690.6,2688.6,0.0011]
[1769806236544,13.68714651,2690.4,2688.6,0.93092175]
[1769806236698,12.60143323,2690.2,2688.6,0.0011]
[1769806237022,12.60143323,2690.2,2688.6,0.93095077]
[1769806237231,12.60143323,2690.2,2688.8,0.92976124]
[1769806237413,12.60143323,2690.2,2688.6,0.0011]
[1769806237414,12.60143323,2690.0,2688.6,0.0011]
[1769806238005,13.37943323,2690.0,2688.6,0.0011]
[1769806238218,15.2881954,2689.9,2688.6,0.0011]
[1769806239531,0.92943713,2689.8,2688.6,0.0011]
[1769806239724,0.779,2689.7,2688.6,0.0011]
[1769806240819,0.92943713,2689.8,2688.6,0.0011]
[1769806241019,0.92926439,2690.3,2688.6,13.06573323]
[1769806241215,0.92926439,2690.3,2688.7,1.30657332]
[1769806241421,0.92926439,2690.3,2688.8,0.9297828]
[1769806242527,14.84331321,2690.3,2688.8,0.9297828]
[1769806243031,0.92926439,2690.3,2688.8,14.77341603]
[1769806243810,3.71705757,2690.4,2688.8,1.7087828]
[1769806244000,0.82131151,2690.3,2688.9,0.54280521]
[1769806244202,3.71705757,2690.4,2688.9,0.54280521]
[1769806244407,3.71705757,2690.4,2688.9,13.60743844]
[1769806244912,3.71705757,2690.4,2688.9,0.54280521]
[1769806245238,17.63110639,2690.4,2688.9,0.54280521]
[1769806245938,13.91404882,2690.3,2688.9,1.47253094]
[1769806246135,1.76311064,2690.2,2688.9,1.47253094]
[1769806247148,15.67715946,2690.2,2688.9,0.54280521]
[1769806247438,15.67715946,2690.2,2688.8,0.92977208]
[1769806247607,15.67715946,2690.2,2688.8,0.92974829]
[1769806247809,0.92933348,2690.1,2689.0,0.0011]
[1769806248136,2.26949047,2690.0,2689.0,0.0011]
[1769806248834,16.18353929,2690.0,2689.0,0.0011]
[1769806249140,2.237,2689.9,2688.6,0.0011]
[1769806249341,13.91404882,2689.8,2688.6,0.0011]
[1769806249540,1.39140488,2689.7,2688.6,0.0011]
[1769806250040,0.92950624,2689.6,2688.6,0.0011]
[1769806250747,0.92940258,2689.9,2688.6,13.06573323]
[1769806251337,14.8434514,2689.9,2688.6,0.0011]
[1769806251840,0.92940258,2689.9,2688.6,0.0011]
[1769806252017,0.92947168,2689.7,2688.6,0.0011]
[1769806253871,1.73703774,2688.1,2685.8,0.0006]
[1769806254017,13.91404882,2687.3,2684.7,0.0011]
[1769806254218,0.0028,2685.2,2684.7,0.0011]
[1769806254416,0.779,2686.3,2684.7,0.93228286]
[1769806254735,3.80075324,2685.9,2685.0,0.93219563]
[1769806254909,0.01638767,2686.7,2686.4,0.77737278]
[1769806255108,0.01638767,2686.7,2685.1,2.63798669]
[1769806255325,0.01638767,2686.7,2685.2,1.66348156]
[1769806256223,0.93054418,2686.6,2685.3,0.93099467]
[1769806256608,0.93054418,2686.6,2685.2,1.66348156]
[1769806256811,0.93054418,2686.6,2685.2,0.93102661]
[1769806257052,0.93054418,2686.6,2685.0,0.93217283]
[1769806257235,14.844593,2686.6,2685.0,0.9321966]
[1769806257559,14.844593,2686.6,2685.1,0.93104263]
[1769806257766,14.844593,2686.6,2685.0,0.0011]
[1769806257920,13.91404882,2686.4,2685.0,0.0011]
[1769806258118,0.779,2686.3,2685.0,0.0011]
[1769806258325,13.91324882,2684.1,2681.4,0.37835371]
[1769806258665,1.52912189,2684.2,2679.8,0.0011]
[1769806258666,3.323086,2681.1,2680.0,0.298572]
[1769806259016,3.323086,2680.8,2680.0,0.298572]
[1769806259211,5.60968129,2680.7,2679.8,0.0011]
[1769806259514,3.323086,2680.8,2679.8,0.0011]
[1769806259714,2.81511042,2681.9,2679.8,0.0011]
[1769806259715,1.119658,2681.4,2679.8,13.06573323]
[1769806259957,3.323086,2681.7,2680.2,13.06463323]
[1769806260368,2.81511042,2681.9,2680.4,13.06463323]
[1769806260650,3.72708519,2683.1,2680.3,0.93273141]
[1769806260651,3.323086,2682.8,2680.9,0.1024]
[1769806260823,3.323086,2682.4,2680.9,13.06463323]
[1769806261027,3.323086,2681.8,2680.3,13.99736464]
[1769806261227,3.323086,2681.7,2680.4,1.77282903]
[1769806261478,3.323086,2681.7,2680.1,0.93279255]
[1769806261618,4.102086,2681.7,2680.2,0.93275857]
[1769806262232,3.323086,2681.4,2680.2,0.93275857]
[1769806262920,3.72792032,2682.5,2680.0,13.06463323]
[1769806263123,3.323086,2682.1,2680.2,13.06463323]
[1769806263655,3.323086,2681.5,2680.1,1.66472632]
[1769806263817,3.323086,2682.0,2680.1,9.006593]
[1769806264015,3.323086,2682.0,2680.2,13.06463323]
[1769806264460,3.323086,2681.5,2680.2,13.06463323]
[1769806264616,3.323086,2681.5,2680.0,0.78]
[1769806265035,3.323086,2681.5,2680.1,13.99743424]
[1769806265275,3.323086,2681.5,2680.2,1.85086383]
[1769806266253,0.93221902,2681.8,2680.2,1.85086383]
[1769806267285,0.93203593,2682.3,2680.3,14.42169852]
[1769806267948,3.323086,2681.8,2680.3,14.42169852]
[1769806268145,3.323086,2682.0,2680.4,2.0003488]
[1769806268491,3.323086,2681.0,2679.1,13.48896711]
[1769806268647,3.323086,2680.8,2679.1,17.2215016]
[1769806269048,4.25554082,2681.1,2679.2,1.03551436]
[1769806269664,4.25554372,2681.1,2679.2,0.93311436]
[1769806269981,3.323086,2680.8,2679.2,0.93311436]
[1769806270456,0.93245772,2681.1,2679.2,0.93311436]
[1769806270981,3.323086,2680.8,2679.2,0.93311436]
[1769806271181,0.78,2681.4,2679.2,0.93311436]
[1769806271182,0.93238354,2681.3,2679.6,13.48896711]
[1769806271349,0.78,2681.8,2679.8,1.35010671]
[1769806271685,3.323086,2681.3,2679.8,1.35010671]
[1769806271884,3.323086,2681.3,2679.8,14.83907382]
[1769806272655,1.087335,2680.3,2676.4,1.11930483]
[1769806272862,12.81513631,2678.9,2676.4,1.11930483]
[1769806273096,0.2335703,2678.7,2676.2,14.42312748]
[1769806273301,5.8262,2677.6,2676.2,14.42312748]
[1769806273673,5.8262,2677.1,2675.0,13.48896711]
[1769806273975,5.8262,2676.7,2675.5,0.93438145]
[1769806274285,12.71273631,2676.6,2674.9,0.0189112]
[1769806274488,12.71273631,2676.6,2674.7,0.93466348]
[1769806274489,1.85389363,2676.5,2674.7,0.93466348]
[1769806274687,0.781,2676.6,2674.7,0.93466348]
[1769806274882,5.8262,2675.8,2674.7,0.93466348]
[1769806275066,5.8262,2675.6,2673.9,3.73978999]
[1769806275464,5.8262,2675.6,2674.0,13.48896711]
[1769806275676,5.8262,2676.2,2674.3,13.59136711]
[1769806275895,6.50223407,2676.2,2674.4,1.35913671]
[1769806276096,5.8262,2675.7,2674.4,1.35913671]
[1769806276394,5.8262,2676.1,2674.4,14.84810382]
[1769806276898,0.93356734,2677.9,2675.2,13.48896711]
[1769806277086,5.8262,2677.2,2675.3,14.42344174]
[1769806277286,5.8262,2677.2,2675.4,15.30510114]
[1769806277287,6.50219622,2677.2,2675.4,15.30510114]
[1769806277864,7.43601383,2677.2,2675.4,15.30510114]
[1769806278097,6.50219622,2677.2,2675.4,15.30510114]
[1769806278605,0.93335822,2678.5,2675.8,13.48896711]
[1769806278894,0.93335822,2678.5,2675.4,1.81613403]
[1769806278895,0.93335822,2678.5,2676.2,13.48896711]
[1769806279106,0.19477627,2678.5,2676.4,13.48896711]
[1769806279400,0.9333674,2678.5,2676.4,13.48896711]
[1769806280197,0.2335703,2678.4,2676.4,13.48896711]
[1769806280398,0.2335703,2678.4,2676.5,1.44230926]
[1769806280601,0.93318402,2679.0,2676.6,0.782]
[1769806280800,0.93318402,2679.0,2676.7,13.48896711]
[1769806281303,3.73233955,2679.3,2676.8,14.42291809]
[1769806281516,0.2335703,2679.2,2676.8,14.42291809]
[1769806281683,0.39659099,2679.1,2676.9,1.8158722]
[1769806282596,0.39659099,2679.1,2676.9,15.30483931]
[1769806283101,0.2335703,2679.0,2676.9,1.8158722]
[1769806283277,0.2335703,2678.4,2676.6,1.21649934]
[1769806283800,0.1024,2678.6,2676.6,1.21649934]
[1769806284200,0.93325369,2678.8,2676.6,14.70546645]
[1769806285182,3.73277045,2679.0,2676.6,14.70546645]
[1769806285385,1.32977501,2679.1,2676.6,14.70546645]
[1769806285386,0.39659099,2679.1,2677.0,13.48896711]
[1769806285580,0.93311685,2679.2,2677.3,13.48896711]
[1769806285790,0.93311685,2679.2,2677.1,16.43923122]
[1769806286071,0.93280101,2680.1,2677.9,13.48896711]
[1769806286270,4.51272048,2680.5,2678.1,13.48896711]
[1769806286271,3.73089211,2680.4,2678.1,13.48896711]
[1769806286490,16.44362842,2680.4,2677.7,13.48896711]
[1769806286669,1.8158325,2680.3,2677.9,13.48896711]
[1769806287083,3.73089211,2680.4,2677.9,13.48896711]
[1769806287279,3.73089211,2680.4,2678.1,13.48896711]
[1769806287595,0.93269661,2680.4,2678.1,13.48896711]
[1769806287994,1.71468394,2680.5,2678.1,13.48896711]
[1769806288398,0.93269661,2680.4,2678.3,13.48896711]
[1769806288587,0.54453944,2680.3,2678.4,2.13089671]
[1769806288907,0.93268003,2680.5,2678.5,13.48896711]
[1769806289209,3.72988673,2681.1,2678.9,13.48896711]
[1769806289511,3.72959375,2681.3,2679.0,14.42215113]
[1769806290217,0.93234877,2681.4,2679.2,13.48896711]
[1769806290374,0.93214019,2682.0,2679.6,13.48896711]
[1769806290778,13.6448765,2682.0,2679.4,0.1024]